[Event "26th OIBM 2023"]
[Site "Gmund am Tegernsee"]
[Date "2023.11.02"]
[Round "6.6"]
[White "Zawadzka, Jolanta"]
[Black "Bauer, Christian"]
[Result "1/2-1/2"]
[ECO "B12"]
[WhiteElo "2342"]
[BlackElo "2552"]
[Annotator "ChessBase"]
[PlyCount "97"]
[EventDate "2023.10.04"]
[EventType "swiss"]
[EventCountry "GER"]
[SourceTitle "playchess.com"]
[Source "ChessBase"]
[SourceQuality "1"]
[TimeControl "40/5400+30:1800+30"]

1. e4 {[%emt 0:02:32]} c6 {[%emt 0:00:51]} 2. d4 {[%emt 0:00:11]} d5 {[%emt 0:00:07]} 3. Nd2 {[%emt 0:00:05]} g6 {[%emt 0:00:57]} 4. Ngf3 {[%emt 0:00:48]} Bg7 {[%emt 0:00:07]} 5. e5 {[%emt 0:03:09]} f6 {[%emt 0:02:56]} 6. Bd3 {[%emt 0:12:10]} Nh6 {[%emt 0:10:04]} 7. O-O {[%emt 0:02:56]} Nf7 {[%emt 0:06:36]} 8. Qe2 {[%emt 0:08:16]} fxe5 {[%emt 0:03:37]} 9. Nxe5 {[%emt 0:00:26]} Nxe5 {[%emt 0:01:24]} 10. dxe5 {[%emt 0:00:07]} Nd7 {[%emt 0:01:20]} 11. f4 {[%emt 0:01:08]} Nc5 {[%emt 0:01:04]} 12. Nb3 {[%emt 0:17:52]} Nxd3 {[%emt 0:00:18]} 13. cxd3 {[%emt 0:00:07]} O-O {[%emt 0:04:17]} 14. Be3 {[%emt 0:02:31]} b6 {[%emt 0:01:06]} 15. d4 {[%emt 0:03:16]} a5 {[%emt 0:04:20]} 16. Qc2 {[%emt 0:01:04]} Bd7 {[%emt 0:12:39]} 17. a4 {[%emt 0:01:36]} Qc8 {[%emt 0:04:58]} 18. h3 {[%emt 0:02:37]} Qa6 {[%emt 0:09:38]} 19. g4 {[%emt 0:10:47]} Rac8 {[%emt 0:04:41]} 20. Rf2 {[%emt 0:01:49]} e6 {[%emt 0:03:00]} 21. h4 {[%emt 0:03:57]} Be8 {[%emt 0:04:21]} 22. h5 {[%emt 0:02:46]} c5 {[%emt 0:03:20]} 23. dxc5 {[%emt 0:03:25]} gxh5 {[%emt 0:06:37]} 24. f5 {[%emt 0:03:53]} hxg4 {[%emt 0:02:41]} 25. f6 {[%emt 0:00:20]} Bg6 {[%emt 0:01:25]} 26. Qe2 {[%emt 0:01:46]} Qxe2 {[%emt 0:03:10]} 27. Rxe2 {[%emt 0:00:05]} bxc5 {[%emt 0:03:20]} 28. fxg7 {[%emt 0:03:16]} Rf3 {[%emt 0:00:27]} 29. Nxc5 {[%emt 0:03:49]} Bf5 {[%emt 0:04:15]} 30. b4 {[%emt 0:03:15]} axb4 {[%emt 0:00:06]} 31. a5 {[%emt 0:00:10]} b3 {[%emt 0:00:57]} 32. Bd4 {[%emt 0:03:49]} Rg3+ {[%emt 0:00:31]} 33. Kh2 {[%emt 0:00:27]} Rh3+ {[%emt 0:00:53]} 34. Kg2 {[%emt 0:00:05]} Kxg7 {[%emt 0:00:26]} 35. Rb2 {[%emt 0:01:03]} Kg6 {[%emt 0:00:41]} 36. a6 {[%emt 0:00:44]} h5 {[%emt 0:00:47]} 37. a7 {[%emt 0:00:18]} Ra8 {[%emt 0:00:06]} 38. Ra6 {[%emt 0:01:48]} h4 {[%emt 0:00:49]} 39. Nxe6 {[%emt 0:00:25]} Be4+ {[%emt 0:00:15]} 40. Kf2 {[%emt 0:00:34]} g3+ {[%emt 0:00:50]} 41. Ke3 {[%emt 0:08:20]} Kf5 {[%emt 0:04:05]} 42. Nf4 {[%emt 0:07:04]} Rh1 {[%emt 0:01:13]} 43. Ne2 {[%emt 0:05:17]} g2 {[%emt 0:01:27]} 44. Kd2 {[%emt 0:00:52]} Bc2 {[%emt 0:05:31]} 45. Rf6+ {[%emt 0:03:52]} Kg4 {[%emt 0:01:23]} 46. Rxc2 {[%emt 0:05:22]} bxc2 {[%emt 0:00:04]} 47. Rg6+ {[%emt 0:00:02]} Kf3 {[%emt 0:01:09]} 48. Rf6+ {[%emt 0:00:04]} Kg4 {[%emt 0:00:06]} 49. Rg6+ {[%emt 0:00:06]} 1/2-1/2

[Event "26th OIBM 2023"]
[Site "Gmund am Tegernsee"]
[Date "2023.11.02"]
[Round "6.7"]
[White "Petrov, Nikita"]
[Black "Lavrencic, Matic"]
[Result "1/2-1/2"]
[ECO "A21"]
[WhiteElo "2551"]
[BlackElo "2319"]
[Annotator "ChessBase"]
[PlyCount "106"]
[EventDate "2023.10.04"]
[EventType "swiss"]
[EventCountry "GER"]
[SourceTitle "playchess.com"]
[Source "ChessBase"]
[SourceQuality "1"]
[TimeControl "40/5400+30:1800+30"]

1. c4 {[%emt 0:00:04]} e5 {[%emt 0:00:10]} 2. Nc3 {[%emt 0:00:36]} Bb4 {[%emt 0:00:26]} 3. Qb3 {[%emt 0:00:35]} Nc6 {[%emt 0:02:15]} 4. e3 {[%emt 0:00:30]} Nf6 {[%emt 0:01:00]} 5. Nge2 {[%emt 0:01:24]} O-O {[%emt 0:00:36]} 6. a3 {[%emt 0:01:11]} Be7 {[%emt 0:06:51]} 7. Ng3 {[%emt 0:04:51]} d6 {[%emt 0:06:46]} 8. Be2 {[%emt 0:00:39]} a5 {[%emt 0:03:45]} 9. O-O {[%emt 0:06:07]} Bd7 {[%emt 0:04:33]} 10. Qc2 {[%emt 0:02:50]} Be6 {[%emt 0:02:01]} 11. b3 {[%emt 0:05:24]} d5 {[%emt 0:01:28]} 12. cxd5 {[%emt 0:00:14]} Nxd5 {[%emt 0:00:07]} 13. Bb2 {[%emt 0:03:29]} Nxc3 {[%emt 0:04:56]} 14. Qxc3 {[%emt 0:04:05]} f6 {[%emt 0:05:06]} 15. Rac1 {[%emt 0:06:46]} Bd6 {[%emt 0:04:06]} 16. Bc4 {[%emt 0:05:58]} Qd7 {[%emt 0:01:02]} 17. Ne4 {[%emt 0:01:38]} Kh8 {[%emt 0:01:46]} 18. Bxe6 {[%emt 0:09:30]} Qxe6 {[%emt 0:00:12]} 19. Qc4 {[%emt 0:00:03]} Qd7 {[%emt 0:05:25]} 20. Rfd1 {[%emt 0:00:45]} Rfd8 {[%emt 0:13:21]} 21. h3 {[%emt 0:02:59]} Qe7 {[%emt 0:01:00]} 22. Qb5 {[%emt 0:06:05]} Rab8 {[%emt 0:03:01]} 23. Nc5 {[%emt 0:02:21]} Bxc5 {[%emt 0:00:58]} 24. Rxc5 {[%emt 0:00:56]} Qd6 {[%emt 0:05:13]} 25. d4 {[%emt 0:06:13]} exd4 {[%emt 0:02:30]} 26. Bxd4 {[%emt 0:03:51]} Qe7 {[%emt 0:02:36]} 27. Qc4 {[%emt 0:05:15]} Rd7 {[%emt 0:02:18]} 28. Rb5 {[%emt 0:05:21]} h6 {[%emt 0:03:21]} 29. a4 {[%emt 0:02:30]} Qd8 {[%emt 0:05:01]} 30. Qc3 {[%emt 0:01:54]} Qe7 {[%emt 0:03:49]} 31. Rd2 {[%emt 0:02:25]} Qd6 {[%emt 0:02:31]} 32. Qc2 {[%emt 0:03:45]} b6 {[%emt 0:03:02]} 33. Rh5 {[%emt 0:01:26]} Nxd4 {[%emt 0:00:52]} 34. Rxd4 {[%emt 0:00:06]} Qe6 {[%emt 0:00:50]} 35. Rhh4 {[%emt 0:00:38]} Rbd8 {[%emt 0:00:40]} 36. Rhe4 {[%emt 0:00:11]} Qf7 {[%emt 0:00:21]} 37. Rxd7 {[%emt 0:01:37]} Qxd7 {[%emt 0:00:26]} 38. Rd4 {[%emt 0:00:17]} Qe7 {[%emt 0:00:05]} 39. Qd3 {[%emt 0:01:19]} Rxd4 {[%emt 0:00:09]} 40. Qxd4 {[%emt 0:00:05]} Qf7 {[%emt 0:00:51]} 41. Qd8+ {[%emt 0:30:31]} Kh7 {[%emt 0:30:07]} 42. Qd3+ {[%emt 0:00:04]} Kh8 {[%emt 0:00:05]} 43. e4 {[%emt 0:01:00]} Qe7 {[%emt 0:01:05]} 44. Qd5 {[%emt 0:00:41]} Qb4 {[%emt 0:00:49]} 45. Kh2 {[%emt 0:00:00]} Qc3 {[%emt 0:00:00]} 46. h4 {[%emt 0:00:00]} Qc2 {[%emt 0:00:00]} 47. f3 {[%emt 0:00:00]} Qc1 {[%emt 0:00:00]} 48. Kg3 {[%emt 0:00:00]} Qc2 {[%emt 0:00:00]} 49. Kh3 {[%emt 0:00:00]} Qb2 {[%emt 0:00:00]} 50. g3 {[%emt 0:00:00]} Qc3 {[%emt 0:00:00]} 51. Kg4 {[%emt 0:00:00]} c6 {[%emt 0:00:00]} 52. Qe6 {[%emt 0:00:00]} h5+ {[%emt 0:00:00]} 53. Kxh5 {[%emt 0:00:00]} Qxf3+ {[%emt 0:00:00]} 1/2-1/2

[Event "26th OIBM 2023"]
[Site "Gmund am Tegernsee"]
[Date "2023.11.02"]
[Round "6.8"]
[White "Unuk, Laura"]
[Black "Van Foreest, Lucas"]
[Result "1/2-1/2"]
[ECO "D02"]
[WhiteElo "2313"]
[BlackElo "2540"]
[Annotator "ChessBase"]
[PlyCount "81"]
[EventDate "2023.10.04"]
[EventType "swiss"]
[EventCountry "GER"]
[SourceTitle "playchess.com"]
[Source "ChessBase"]
[SourceQuality "1"]
[TimeControl "40/5400+30:1800+30"]

1. d4 {[%emt 0:00:04]} Nf6 {[%emt 0:00:11]} 2. Bf4 {[%emt 0:00:13]} d5 {[%emt 0:00:34]} 3. e3 {[%emt 0:00:34]} e6 {[%emt 0:00:29]} 4. Nf3 {[%emt 0:00:42]} Bd6 {[%emt 0:01:26]} 5. Nbd2 {[%emt 0:02:46]} O-O {[%emt 0:00:31]} 6. c3 {[%emt 0:01:35]} b6 {[%emt 0:01:28]} 7. Bg3 {[%emt 0:03:12]} c5 {[%emt 0:00:47]} 8. Bd3 {[%emt 0:03:29]} Bb7 {[%emt 0:00:15]} 9. Qe2 {[%emt 0:09:46]} Nc6 {[%emt 0:03:32]} 10. Rd1 {[%emt 0:02:00]} h6 {[%emt 0:06:24]} 11. Ne5 {[%emt 0:05:08]} Qc7 {[%emt 0:00:17]} 12. f4 {[%emt 0:00:58]} Ne7 {[%emt 0:00:05]} 13. Bh4 {[%emt 0:16:59]} Ne4 {[%emt 0:01:53]} 14. Bxe7 {[%emt 0:00:24]} Bxe7 {[%emt 0:09:43]} 15. O-O {[%emt 0:00:34]} Bd6 {[%emt 0:00:09]} 16. Nxe4 {[%emt 0:16:19]} dxe4 {[%emt 0:01:05]} 17. Bc4 {[%emt 0:00:18]} Rad8 {[%emt 0:16:39]} 18. Bb3 {[%emt 0:02:47]} Bd5 {[%emt 0:01:52]} 19. g4 {[%emt 0:14:33]} g6 {[%emt 0:12:59]} 20. h4 {[%emt 0:02:34]} Kg7 {[%emt 0:07:31]} 21. h5 {[%emt 0:01:03]} g5 {[%emt 0:06:55]} 22. Qg2 {[%emt 0:07:47]} cxd4 {[%emt 0:05:22]} 23. cxd4 {[%emt 0:00:50]} Bxe5 {[%emt 0:05:25]} 24. fxe5 {[%emt 0:00:44]} Bxb3 {[%emt 0:02:32]} 25. axb3 {[%emt 0:00:11]} Rc8 {[%emt 0:00:37]} 26. Qxe4 {[%emt 0:01:10]} Qc2 {[%emt 0:03:30]} 27. Qxc2 {[%emt 0:01:26]} Rxc2 {[%emt 0:00:02]} 28. Rf2 {[%emt 0:00:05]} Rfc8 {[%emt 0:00:02]} 29. Rdd2 {[%emt 0:01:09]} Rxd2 {[%emt 0:05:19]} 30. Rxd2 {[%emt 0:00:04]} Rc1+ {[%emt 0:00:24]} 31. Kf2 {[%emt 0:00:32]} f6 {[%emt 0:01:09]} 32. exf6+ {[%emt 0:00:24]} Kxf6 {[%emt 0:00:01]} 33. Kf3 {[%emt 0:01:05]} Ke7 {[%emt 0:00:30]} 34. Ke4 {[%emt 0:03:03]} Kd6 {[%emt 0:00:21]} 35. Rf2 {[%emt 0:02:55]} Rg1 {[%emt 0:00:05]} 36. Kf3 {[%emt 0:00:20]} Kd5 {[%emt 0:01:07]} 37. Rd2 {[%emt 0:00:18]} Rf1+ {[%emt 0:00:07]} 38. Ke2 {[%emt 0:00:15]} Rg1 {[%emt 0:00:05]} 39. Kf3 {[%emt 0:00:36]} Rf1+ {[%emt 0:00:03]} 40. Ke2 {[%emt 0:00:50]} Rg1 {[%emt 0:00:06]} 41. Kf3 {[%emt 0:31:18]} 1/2-1/2

[Event "26th OIBM 2023"]
[Site "Gmund am Tegernsee"]
[Date "2023.11.02"]
[Round "6.9"]
[White "Schneider, Jana"]
[Black "Kulaots, Kaido"]
[Result "0-1"]
[ECO "B34"]
[WhiteElo "2285"]
[BlackElo "2508"]
[Annotator "ChessBase"]
[PlyCount "48"]
[EventDate "2023.10.04"]
[EventType "swiss"]
[EventCountry "GER"]
[SourceTitle "playchess.com"]
[Source "ChessBase"]
[SourceQuality "1"]
[TimeControl "40/5400+30:1800+30"]

1. e4 {[%emt 0:00:04]} c5 {[%emt 0:00:24]} 2. Nf3 {[%emt 0:00:08]} Nc6 {[%emt 0:00:07]} 3. Nc3 {[%emt 0:02:32]} g6 {[%emt 0:01:13]} 4. d4 {[%emt 0:00:24]} cxd4 {[%emt 0:00:06]} 5. Nxd4 {[%emt 0:00:04]} Bg7 {[%emt 0:00:07]} 6. Be3 {[%emt 0:00:33]} Nf6 {[%emt 0:00:07]} 7. Nxc6 {[%emt 0:11:07]} bxc6 {[%emt 0:00:30]} 8. e5 {[%emt 0:00:07]} Ng8 {[%emt 0:00:06]} 9. f4 {[%emt 0:00:06]} Nh6 {[%emt 0:02:07]} 10. Qd2 {[%emt 0:00:28]} d6 {[%emt 0:08:15]} 11. O-O-O {[%emt 0:04:14]} O-O {[%emt 0:01:28]} 12. exd6 {[%emt 0:00:23]} Nf5 {[%emt 0:00:56]} 13. Bf2 {[%emt 0:10:41]} Rb8 {[%emt 0:01:51]} 14. Bc4 {[%emt 0:07:05]} exd6 {[%emt 0:23:43]} 15. g4 {[%emt 0:02:21]} Rb4 {[%emt 0:02:41]} 16. Bf1 {[%emt 0:17:16]} Qa5 {[%emt 0:08:20]} 17. gxf5 {[%emt 0:17:06]} Rxb2 {[%emt 0:00:38]} 18. f6 {[%emt 0:04:13]} Qa3 {[%emt 0:04:47]} 19. Qxd6 {[%emt 0:04:21]} Qxc3 {[%emt 0:01:12]} 20. Qd3 {[%emt 0:00:44]} Qb4 {[%emt 0:01:35]} 21. c3 {[%emt 0:00:49]} Qa3 {[%emt 0:00:37]} 22. Rd2 {[%emt 0:02:43]} Rxa2+ {[%emt 0:00:58]} 23. Kd1 {[%emt 0:00:10]} Bg4+ {[%emt 0:00:52]} 24. Ke1 {[%emt 0:00:33]} Ra1+ {[%emt 0:00:10]} 0-1

[Event "26th OIBM 2023"]
[Site "Gmund am Tegernsee"]
[Date "2023.11.02"]
[Round "6.10"]
[White "Vetoshko, Volodymyr"]
[Black "Liepold, Stefan"]
[Result "1-0"]
[ECO "A16"]
[WhiteElo "2499"]
[BlackElo "2150"]
[Annotator "ChessBase"]
[PlyCount "57"]
[EventDate "2023.10.04"]
[EventType "swiss"]
[EventCountry "GER"]
[SourceTitle "playchess.com"]
[Source "ChessBase"]
[SourceQuality "1"]
[TimeControl "40/5400+30:1800+30"]

1. Nf3 {[%emt 0:00:04]} Nf6 {[%emt 0:00:15]} 2. c4 {[%emt 0:00:17]} g6 {[%emt 0:00:11]} 3. Nc3 {[%emt 0:00:23]} d5 {[%emt 0:00:14]} 4. cxd5 {[%emt 0:00:09]} Nxd5 {[%emt 0:00:11]} 5. h4 {[%emt 0:00:25]} h6 {[%emt 0:12:53]} 6. e4 {[%emt 0:01:24]} Nxc3 {[%emt 0:01:16]} 7. bxc3 {[%emt 0:00:09]} Bg7 {[%emt 0:00:27]} 8. d4 {[%emt 0:00:32]} c5 {[%emt 0:00:35]} 9. Be2 {[%emt 0:00:49]} cxd4 {[%emt 0:13:43]} 10. cxd4 {[%emt 0:00:36]} Nc6 {[%emt 0:00:08]} 11. Be3 {[%emt 0:04:16]} Qa5+ {[%emt 0:12:21]} 12. Bd2 {[%emt 0:36:43]} Qa3 {[%emt 0:10:38]} 13. d5 {[%emt 0:01:10]} Ne5 {[%emt 0:00:37]} 14. Nxe5 {[%emt 0:02:39]} Bxe5 {[%emt 0:01:29]} 15. Rb1 {[%emt 0:03:31]} Qd6 {[%emt 0:09:05]} 16. Qc1 {[%emt 0:05:50]} O-O {[%emt 0:30:16]} 17. Bxh6 {[%emt 0:01:53]} Re8 {[%emt 0:00:42]} 18. h5 {[%emt 0:08:06]} Bd7 {[%emt 0:00:30]} 19. hxg6 {[%emt 0:01:25]} fxg6 {[%emt 0:00:44]} 20. Qg5 {[%emt 0:01:17]} Rec8 {[%emt 0:01:26]} 21. f4 {[%emt 0:08:12]} Bc3+ {[%emt 0:00:44]} 22. Kf1 {[%emt 0:00:05]} Be8 {[%emt 0:00:42]} 23. e5 {[%emt 0:04:43]} Qxd5 {[%emt 0:00:34]} 24. Bf8 {[%emt 0:11:03]} Bxe5 {[%emt 0:02:12]} 25. fxe5 {[%emt 0:02:13]} Qf7+ {[%emt 0:00:16]} 26. Kg1 {[%emt 0:02:16]} Qxf8 {[%emt 0:00:08]} 27. Rxb7 {[%emt 0:00:45]} Rab8 {[%emt 0:01:07]} 28. Rxb8 {[%emt 0:01:03]} Rxb8 {[%emt 0:00:04]} 29. Bc4+ {[%emt 0:00:04]} 1-0

[Event "26th OIBM 2023"]
[Site "Gmund am Tegernsee"]
[Date "2023.11.02"]
[Round "6.11"]
[White "Cherniaiev, Tykhon"]
[Black "Gallego Alcaraz, Andres Felipe"]
[Result "1-0"]
[ECO "B20"]
[WhiteElo "2278"]
[BlackElo "2495"]
[Annotator "ChessBase"]
[PlyCount "84"]
[EventDate "2023.10.04"]
[EventType "swiss"]
[EventCountry "GER"]
[SourceTitle "playchess.com"]
[Source "ChessBase"]
[SourceQuality "1"]
[TimeControl "40/5400+30:1800+30"]

1. e4 {[%emt 0:00:09]} c5 {[%emt 0:00:25]} 2. b3 {[%emt 0:00:20]} d6 {[%emt 0:04:28]} 3. Bb2 {[%emt 0:00:18]} Nf6 {[%emt 0:02:22]} 4. Nc3 {[%emt 0:00:22]} Nc6 {[%emt 0:04:26]} 5. Bb5 {[%emt 0:01:05]} Bd7 {[%emt 0:01:04]} 6. f4 {[%emt 0:00:31]} a6 {[%emt 0:01:38]} 7. Bxc6 {[%emt 0:00:52]} Bxc6 {[%emt 0:00:05]} 8. Qe2 {[%emt 0:00:08]} e6 {[%emt 0:05:02]} 9. Nf3 {[%emt 0:00:22]} Be7 {[%emt 0:00:22]} 10. e5 {[%emt 0:00:19]} dxe5 {[%emt 0:02:07]} 11. Nxe5 {[%emt 0:00:07]} Rc8 {[%emt 0:00:55]} 12. O-O-O {[%emt 0:00:12]} O-O {[%emt 0:02:04]} 13. Kb1 {[%emt 0:00:12]} Nd5 {[%emt 0:03:00]} 14. Nxd5 {[%emt 0:02:16]} Qxd5 {[%emt 0:01:34]} 15. d3 {[%emt 0:06:28]} f6 {[%emt 0:09:28]} 16. Nc4 {[%emt 0:02:23]} Rce8 {[%emt 0:01:01]} 17. Rhg1 {[%emt 0:04:16]} Bd8 {[%emt 0:00:30]} 18. Rdf1 {[%emt 0:00:30]} b5 {[%emt 0:00:30]} 19. Ne3 {[%emt 0:00:30]} Qd7 {[%emt 0:00:30]} 20. g4 {[%emt 0:00:30]} Bc7 {[%emt 0:00:30]} 21. Qf2 {[%emt 0:00:30]} a5 {[%emt 0:00:30]} 22. f5 {[%emt 0:00:30]} Be5 {[%emt 0:00:30]} 23. g5 {[%emt 0:00:30]} Bxb2 {[%emt 0:00:30]} 24. Kxb2 {[%emt 0:00:30]} fxg5 {[%emt 0:00:30]} 25. Rxg5 {[%emt 0:00:30]} Qd4+ {[%emt 0:00:30]} 26. c3 {[%emt 0:00:30]} Qf6 {[%emt 0:00:30]} 27. Rfg1 {[%emt 0:00:30]} b4 {[%emt 0:00:30]} 28. Rxg7+ {[%emt 0:00:30]} Kh8 {[%emt 0:00:30]} 29. Kb1 {[%emt 0:00:30]} exf5 {[%emt 0:00:30]} 30. Nxf5 {[%emt 0:00:30]} Bd5 {[%emt 0:00:30]} 31. Rxh7+ {[%emt 0:00:30]} Kxh7 {[%emt 0:00:30]} 32. Qg3 {[%emt 0:00:30]} Re3 {[%emt 0:00:30]} 33. Nxe3 {[%emt 0:00:30]} Be6 {[%emt 0:00:30]} 34. Rf1 {[%emt 0:00:30]} Qh6 {[%emt 0:00:30]} 35. Rxf8 {[%emt 0:00:30]} Qxf8 {[%emt 0:00:30]} 36. Qh4+ {[%emt 0:00:30]} Kg7 {[%emt 0:00:30]} 37. Qg5+ {[%emt 0:00:30]} Kh7 {[%emt 0:00:30]} 38. Qh5+ {[%emt 0:00:30]} Kg7 {[%emt 0:00:30]} 39. Qe5+ {[%emt 0:00:30]} Kf7 {[%emt 0:00:30]} 40. Qf4+ {[%emt 0:00:30]} Ke7 {[%emt 0:00:30]} 41. Qxf8+ {[%emt 0:30:30]} Kxf8 {[%emt 0:30:30]} 42. Nc4 {[%emt 0:00:30]} Ke7 {[%emt 0:56:27]} 1-0

[Event "26th OIBM 2023"]
[Site "Gmund am Tegernsee"]
[Date "2023.11.02"]
[Round "6.12"]
[White "Meins, Gerlef"]
[Black "Ammon, Tobias"]
[Result "1/2-1/2"]
[ECO "A09"]
[WhiteElo "2412"]
[BlackElo "2145"]
[Annotator "ChessBase"]
[PlyCount "30"]
[EventDate "2023.10.04"]
[EventType "swiss"]
[EventCountry "GER"]
[SourceTitle "playchess.com"]
[Source "ChessBase"]
[SourceQuality "1"]
[TimeControl "40/5400+30:1800+30"]

1. Nf3 {[%emt 0:00:08]} d5 {[%emt 0:00:07]} 2. c4 {[%emt 0:01:10]} d4 {[%emt 0:00:09]} 3. e3 {[%emt 0:00:47]} Nc6 {[%emt 0:00:27]} 4. exd4 {[%emt 0:01:32]} Nxd4 {[%emt 0:00:09]} 5. Nxd4 {[%emt 0:00:31]} Qxd4 {[%emt 0:00:05]} 6. Nc3 {[%emt 0:00:21]} c6 {[%emt 0:00:22]} 7. d3 {[%emt 0:01:14]} Nh6 {[%emt 0:01:03]} 8. Be3 {[%emt 0:01:32]} Qd8 {[%emt 0:01:41]} 9. Bxh6 {[%emt 0:04:35]} gxh6 {[%emt 0:00:10]} 10. d4 {[%emt 0:00:08]} Bg7 {[%emt 0:01:40]} 11. d5 {[%emt 0:00:14]} Qd6 {[%emt 0:01:28]} 12. Be2 {[%emt 0:30:09]} cxd5 {[%emt 0:05:08]} 13. cxd5 {[%emt 0:09:49]} O-O {[%emt 0:04:09]} 14. O-O {[%emt 0:02:42]} Bf5 {[%emt 0:04:52]} 15. Qb3 {[%emt 0:09:55]} Rfc8 {[%emt 0:20:20]} 1/2-1/2

[Event "26th OIBM 2023"]
[Site "Gmund am Tegernsee"]
[Date "2023.11.02"]
[Round "6.13"]
[White "Mueller, Elias"]
[Black "Colpe, Malte"]
[Result "0-1"]
[ECO "C02"]
[WhiteElo "2015"]
[BlackElo "2386"]
[Annotator "ChessBase"]
[PlyCount "80"]
[EventDate "2023.10.04"]
[EventType "swiss"]
[EventCountry "GER"]
[SourceTitle "playchess.com"]
[Source "ChessBase"]
[SourceQuality "1"]
[TimeControl "40/5400+30:1800+30"]

1. e4 {[%emt 0:00:03]} e6 {[%emt 0:00:05]} 2. d4 {[%emt 0:00:07]} d5 {[%emt 0:00:06]} 3. e5 {[%emt 0:00:07]} c5 {[%emt 0:00:07]} 4. c3 {[%emt 0:00:21]} Nc6 {[%emt 0:00:11]} 5. Nf3 {[%emt 0:00:31]} Qb6 {[%emt 0:00:13]} 6. a3 {[%emt 0:01:34]} Nh6 {[%emt 0:00:31]} 7. Bd3 {[%emt 0:01:07]} cxd4 {[%emt 0:02:28]} 8. cxd4 {[%emt 0:00:49]} Nf5 {[%emt 0:01:03]} 9. Bxf5 {[%emt 0:00:40]} exf5 {[%emt 0:00:07]} 10. O-O {[%emt 0:02:47]} Be6 {[%emt 0:02:09]} 11. Nc3 {[%emt 0:03:46]} h6 {[%emt 0:01:57]} 12. h4 {[%emt 0:06:34]} Be7 {[%emt 0:04:09]} 13. Na4 {[%emt 0:14:52]} Qb5 {[%emt 0:06:21]} 14. Bd2 {[%emt 0:08:36]} O-O {[%emt 0:18:48]} 15. Nc3 {[%emt 0:04:32]} Qd3 {[%emt 0:06:54]} 16. Ne2 {[%emt 0:03:14]} Qb5 {[%emt 0:10:28]} 17. Bc3 {[%emt 0:02:39]} a5 {[%emt 0:05:06]} 18. Qd2 {[%emt 0:07:22]} Kh7 {[%emt 0:05:24]} 19. Ng3 {[%emt 0:05:29]} g6 {[%emt 0:03:03]} 20. Qe3 {[%emt 0:08:22]} Rg8 {[%emt 0:01:09]} 21. Bd2 {[%emt 0:01:27]} g5 {[%emt 0:02:51]} 22. hxg5 {[%emt 0:00:18]} hxg5 {[%emt 0:00:07]} 23. Nh5 {[%emt 0:00:48]} f4 {[%emt 0:01:53]} 24. Nxf4 {[%emt 0:12:44]} gxf4 {[%emt 0:00:06]} 25. Qxf4 {[%emt 0:00:06]} Rg6 {[%emt 0:07:54]} 26. Rac1 {[%emt 0:04:38]} Rh8 {[%emt 0:02:37]} 27. Rc3 {[%emt 0:02:22]} Kg8 {[%emt 0:01:33]} 28. Rfc1 {[%emt 0:01:27]} Rh5 {[%emt 0:05:07]} 29. Qe3 {[%emt 0:02:09]} Bf8 {[%emt 0:03:04]} 30. Rb3 {[%emt 0:00:59]} Qa6 {[%emt 0:00:15]} 31. a4 {[%emt 0:00:41]} Rgh6 {[%emt 0:00:46]} 32. Nh2 {[%emt 0:01:46]} Rxh2 {[%emt 0:02:10]} 33. Qg3+ {[%emt 0:00:16]} Bg7 {[%emt 0:01:30]} 34. Bxh6 {[%emt 0:00:55]} Rxh6 {[%emt 0:00:05]} 35. Qe3 {[%emt 0:00:37]} Rg6 {[%emt 0:01:35]} 36. f4 {[%emt 0:00:47]} Qa7 {[%emt 0:01:50]} 37. Rd1 {[%emt 0:00:36]} Bf5 {[%emt 0:01:14]} 38. Rb5 {[%emt 0:00:44]} Be4 {[%emt 0:00:35]} 39. Rd2 {[%emt 0:01:44]} Ne7 {[%emt 0:01:45]} 40. Rc5 {[%emt 0:00:30]} b6 {[%emt 0:00:22]} 0-1

[Event "26th OIBM 2023"]
[Site "Gmund am Tegernsee"]
[Date "2023.11.02"]
[Round "6.14"]
[White "Galioglu, Cem"]
[Black "Schachinger, Mario"]
[Result "0-1"]
[ECO "C69"]
[WhiteElo "1921"]
[BlackElo "2385"]
[Annotator "ChessBase"]
[PlyCount "104"]
[EventDate "2023.10.04"]
[EventType "swiss"]
[EventCountry "GER"]
[SourceTitle "playchess.com"]
[Source "ChessBase"]
[SourceQuality "1"]
[TimeControl "40/5400+30:1800+30"]

1. e4 {[%emt 0:00:57]} e5 {[%emt 0:00:20]} 2. Nf3 {[%emt 0:01:42]} Nc6 {[%emt 0:00:07]} 3. Bb5 {[%emt 0:00:07]} a6 {[%emt 0:00:10]} 4. Bxc6 {[%emt 0:00:15]} dxc6 {[%emt 0:00:08]} 5. O-O {[%emt 0:00:05]} f6 {[%emt 0:01:20]} 6. d4 {[%emt 0:00:07]} exd4 {[%emt 0:00:09]} 7. Nxd4 {[%emt 0:01:17]} c5 {[%emt 0:00:20]} 8. Ne2 {[%emt 0:00:07]} Qxd1 {[%emt 0:02:00]} 9. Rxd1 {[%emt 0:00:05]} Bd7 {[%emt 0:00:45]} 10. Nbc3 {[%emt 0:00:14]} O-O-O {[%emt 0:00:44]} 11. Bf4 {[%emt 0:00:33]} Ne7 {[%emt 0:03:20]} 12. f3 {[%emt 0:00:11]} Re8 {[%emt 0:03:03]} 13. Rd2 {[%emt 0:01:57]} Be6 {[%emt 0:04:34]} 14. Rad1 {[%emt 0:00:55]} b6 {[%emt 0:03:04]} 15. a4 {[%emt 0:00:08]} h5 {[%emt 0:03:48]} 16. Kf2 {[%emt 0:16:31]} g5 {[%emt 0:06:43]} 17. Be3 {[%emt 0:00:26]} Nc6 {[%emt 0:00:24]} 18. Nd5 {[%emt 0:06:40]} Bxd5 {[%emt 0:03:42]} 19. Rxd5 {[%emt 0:01:50]} Bd6 {[%emt 0:02:32]} 20. Rxd6 {[%emt 0:02:49]} cxd6 {[%emt 0:00:08]} 21. Rxd6 {[%emt 0:00:09]} Kb7 {[%emt 0:01:16]} 22. Rxf6 {[%emt 0:00:27]} g4 {[%emt 0:01:38]} 23. Nf4 {[%emt 0:02:31]} Ref8 {[%emt 0:05:23]} 24. Re6 {[%emt 0:24:44]} gxf3 {[%emt 0:00:10]} 25. gxf3 {[%emt 0:00:40]} Re8 {[%emt 0:07:19]} 26. Rg6 {[%emt 0:02:17]} Rhf8 {[%emt 0:08:08]} 27. Ke2 {[%emt 0:03:06]} Rg8 {[%emt 0:06:17]} 28. Rh6 {[%emt 0:01:15]} Rh8 {[%emt 0:02:44]} 29. Rd6 {[%emt 0:01:43]} Rd8 {[%emt 0:05:02]} 30. Rf6 {[%emt 0:00:09]} Rdf8 {[%emt 0:02:44]} 31. Rxc6 {[%emt 0:04:29]} Kxc6 {[%emt 0:00:18]} 32. Ng6 {[%emt 0:00:07]} b5 {[%emt 0:04:51]} 33. axb5+ {[%emt 0:00:52]} axb5 {[%emt 0:00:02]} 34. Nxh8 {[%emt 0:00:12]} Rxh8 {[%emt 0:00:08]} 35. f4 {[%emt 0:02:46]} Ra8 {[%emt 0:06:25]} 36. f5 {[%emt 0:02:11]} Ra2 {[%emt 0:00:38]} 37. Bc1 {[%emt 0:07:21]} c4 {[%emt 0:02:18]} 38. c3 {[%emt 0:04:44]} b4 {[%emt 0:01:21]} 39. Kd2 {[%emt 0:04:23]} b3 {[%emt 0:00:21]} 40. Ke2 {[%emt 0:03:32]} Kd6 {[%emt 0:09:47]} 41. Kf3 {[%emt 0:34:42]} Ke5 {[%emt 0:33:05]} 42. h4 {[%emt 0:01:00]} Kd6 {[%emt 0:00:00]} 43. Bf4+ {[%emt 0:00:00]} Ke7 {[%emt 0:00:00]} 44. Bc1 {[%emt 0:00:00]} Kd6 {[%emt 0:00:00]} 45. Bf4+ {[%emt 0:00:00]} Kd7 {[%emt 0:00:00]} 46. Bc1 {[%emt 0:00:00]} Ra1 {[%emt 0:00:00]} 47. Be3 {[%emt 0:00:00]} Rf1+ {[%emt 0:00:00]} 48. Kg3 {[%emt 0:00:00]} Ke8 {[%emt 0:00:00]} 49. Bc5 {[%emt 0:00:00]} Rb1 {[%emt 0:00:00]} 50. e5 {[%emt 0:00:00]} Rxb2 {[%emt 0:00:00]} 51. Kf3 {[%emt 0:02:16]} Ra2 {[%emt 0:02:15]} 52. e6 {[%emt 0:00:37]} Ra6 {[%emt 0:00:07]} 0-1